bitfinex/quotes_ETHUSD_20251201
["timestamp","ask_amount","ask_price","bid_price","bid_amount"]
[1764581478153,0.9789,2841.6,2841.5,3.52026799]
[1764581478525,0.9789,2841.6,2841.5,0.001]
[1764581478962,0.002,2842.5,2841.6,14.07657656]
[1764581479256,0.002,2842.5,2842.2,0.72559411]
[1764581481232,0.002,2842.5,2842.4,0.467]
[1764581481538,0.002,2842.5,2842.4,4.71074778]
[1764581484141,0.002,2842.5,2842.4,5.16804778]
[1764581485230,0.002,2842.5,2842.4,4.71074778]
[1764581487055,0.002,2842.5,2842.4,5.17364778]
[1764581487357,0.002,2842.5,2842.4,4.71074778]
[1764581488148,0.002,2842.5,2842.4,5.17364778]
[1764581489659,0.0012,2842.5,2842.4,5.17364778]
[1764581494556,0.0012,2842.5,2842.4,4.71074778]
[1764581497775,0.3104,2842.5,2842.4,4.24374778]
[1764581497958,0.0012,2842.5,2842.4,4.27892931]
[1764581498576,0.3119,2842.5,2842.4,4.27892931]
[1764581500978,0.0012,2842.5,2842.4,4.27892931]
[1764581501279,0.0012,2842.5,2842.4,4.73212931]
[1764581501780,0.0012,2842.5,2842.4,4.27892931]
[1764581501978,0.3119,2842.5,2842.4,4.27892931]
[1764581502682,0.3119,2842.5,2842.4,4.27992931]
[1764581503779,0.0012,2842.5,2842.4,4.73312931]
[1764581503985,0.0012,2842.5,2842.4,5.19602931]
[1764581504485,0.0012,2842.5,2842.4,4.73312931]
[1764581504658,0.0012,2842.5,2842.4,11.42296484]
[1764581504855,0.0012,2842.5,2842.4,11.38778331]
[1764581510291,0.7668,2842.5,2842.4,4.24474778]
[1764581510458,1.11863563,2842.5,2842.4,4.24474778]
[1764581510663,0.7668,2842.5,2842.4,4.24474778]
[1764581511561,0.7668,2842.5,2842.4,0.001]
[1764581511768,0.405504,2842.4,2842.1,0.001]
[1764581511979,0.3092,2842.2,2842.1,0.001]
[1764581512381,0.3092,2842.2,2842.1,3.51952503]
[1764581512382,0.7656,2842.2,2842.1,3.51952503]
[1764581512773,0.7648,2842.2,2842.1,3.51952503]
[1764581513164,0.7648,2842.2,2842.1,0.001]
[1764581517269,0.9888,2842.2,2842.1,0.001]
[1764581519371,0.7648,2842.2,2842.1,0.001]
[1764581519581,0.988,2842.2,2842.1,0.001]
[1764581521496,0.99,2842.2,2842.1,0.001]
[1764581524883,0.766,2842.2,2842.1,0.001]
[1764581525084,0.99,2842.2,2842.1,0.001]
[1764581530378,0.5243,2842.2,2842.1,0.001]
[1764581530583,0.9908,2842.2,2842.1,0.001]
[1764581530779,0.002,2842.2,2842.1,0.4887]
[1764581531022,0.226,2842.2,2842.1,0.4887]
[1764581531193,0.226,2842.2,2842.1,0.9763]
[1764581532929,0.226,2842.2,2842.1,4.49482503]
[1764581534403,0.002,2842.2,2842.1,4.73281914]
[1764581534610,0.002,2842.2,2842.1,5.22041914]
[1764581535642,0.0012,2842.2,2842.1,5.22041914]
[1764581537546,0.0012,2842.2,2842.1,5.25560439]
[1764581539614,0.0012,2842.5,2842.4,6.86109168]
[1764581539942,0.0012,2842.5,2842.4,7.34879168]
[1764581540117,0.0012,2842.5,2842.4,7.83639168]
[1764581542114,0.0012,2842.5,2842.4,11.35454535]
[1764581543251,0.0012,2842.5,2842.4,4.73144778]
[1764581543425,0.0012,2842.5,2842.4,4.27892931]
[1764581543631,0.0012,2842.5,2842.4,4.76642931]
[1764581544622,0.0012,2842.5,2842.4,4.24374778]
[1764581546656,0.3059,2842.5,2842.4,4.24374778]
[1764581548262,0.0012,2842.5,2842.4,4.74302931]
[1764581548624,0.0012,2842.5,2842.4,5.23202931]
[1764581551557,0.0012,2842.5,2842.4,5.19684778]
[1764581551858,0.0012,2842.5,2842.4,5.23202931]
[1764581552033,0.0012,2842.5,2842.4,5.19684778]
[1764581552460,0.002,2842.8,2842.6,7.03581228]
[1764581552623,0.002,2842.8,2842.7,1.22487193]
[1764581552826,0.002,2842.8,2842.7,8.03819168]
[1764581553849,0.002,2842.8,2842.7,7.32519168]
[1764581554076,0.2901,2842.8,2842.7,0.72559411]
[1764581554431,0.762,2842.8,2842.5,7.0360598]
[1764581554666,0.4739,2842.8,2842.5,7.0360598]
[1764581554868,0.2881,2842.6,2842.5,3.5180299]
[1764581556656,0.2881,2842.6,2842.3,7.76214901]
[1764581556862,0.4739,2842.8,2842.3,7.76214901]
[1764581556863,0.4758,2842.8,2842.4,0.03518153]
[1764581557037,0.4758,2842.8,2842.3,11.28042646]
[1764581560575,0.7585,2842.2,2842.1,0.001]
[1764581560791,0.002,2842.8,2842.1,1.19069411]
[1764581561079,0.002,2842.8,2842.7,6.13549757]
[1764581561490,0.002,2842.8,2842.7,6.59959757]
[1764581561838,0.002,2842.8,2842.7,6.13549757]
[1764581563043,0.002,2842.8,2842.7,10.11737995]
[1764581563240,0.002,2842.8,2842.7,10.60637995]
[1764581563658,0.002,2842.8,2842.7,11.33197406]
[1764581564050,0.002,2842.8,2842.7,5.19647649]
[1764581564265,0.002,2842.8,2842.7,11.33197406]
[1764581567866,0.002,2842.8,2842.7,10.84297406]
[1764581568072,0.002,2842.8,2842.7,11.33197406]
[1764581570467,0.002,2842.8,2842.7,5.19647649]
[1764581570672,0.002,2842.8,2842.7,5.23165431]
[1764581571278,0.002,2842.8,2842.7,5.19647649]
[1764581571849,0.002,2842.8,2842.7,5.23165431]
[1764581572578,0.002,2842.8,2842.7,5.19647649]
[1764581573281,0.002,2842.8,2842.7,4.70747649]
[1764581573680,0.002,2842.8,2842.7,5.18087649]
[1764581574266,0.002,2842.8,2842.7,5.21605431]
[1764581576465,0.002,2842.8,2842.7,5.18087649]
[1764581579889,0.002,2842.8,2842.7,5.21605431]
[1764581581463,0.002,2842.8,2842.7,5.18087649]
[1764581581664,0.0012,2842.8,2842.7,5.18087649]
[1764581581963,0.3,2842.8,2842.7,3.51778238]
[1764581582764,0.7614,2842.8,2842.6,7.0357976]
[1764581582966,0.4741,2842.7,2842.6,4.24348557]
[1764581583162,0.82593563,2842.7,2842.6,3.51789146]
[1764581583490,0.82593563,2842.7,2842.6,3.55307052]
[1764581583700,0.36453563,2842.7,2842.6,3.51789146]
[1764581583879,0.36453563,2842.7,2842.6,3.55307052]
[1764581584190,0.36453563,2842.7,2842.6,3.51789146]
[1764581584691,0.0012,2842.8,2842.6,7.53467666]
[1764581584996,0.0012,2842.8,2842.7,0.4637]
[1764581585392,0.3097,2842.8,2842.6,7.0357976]
[1764581586192,0.3097,2842.8,2842.7,0.03517782]
[1764581587826,0.3097,2842.8,2842.7,3.5529602]
[1764581589302,0.0012,2842.8,2842.7,3.5529602]
[1764581589483,0.3112,2842.8,2842.7,3.5529602]
[1764581590585,0.7703,2842.8,2842.7,3.51778238]
[1764581591510,0.7703,2842.8,2842.7,3.5529602]
[1764581591874,0.7703,2842.8,2842.7,3.51778238]
[1764581592700,0.7703,2842.8,2842.6,0.001]
[1764581592701,0.35183563,2842.7,2842.6,0.001]
[1764581592889,1.12253563,2842.7,2842.6,0.001]
[1764581595124,5.19885434,2842.7,2842.4,0.001]
[1764581595286,0.405504,2842.3,2842.1,0.001]
[1764581595605,7.98185999,2842.2,2842.1,0.001]
[1764581595818,10.01528406,2842.2,2842.1,0.001]
[1764581596012,1.13109811,2842.1,2841.9,0.001]
[1764581596179,7.40602436,2842.0,2841.9,0.001]
[1764581596499,1.174604,2842.0,2841.9,0.001]
[1764581596708,4.69325283,2842.0,2841.9,0.001]
[1764581596910,6.36331589,2842.0,2841.9,0.001]
[1764581597676,13.78013036,2842.0,2841.9,0.001]
[1764581597875,7.08891,2842.0,2841.9,0.001]
[1764581598283,7.44074563,2842.0,2841.9,0.001]
[1764581601383,14.13196599,2842.0,2841.9,0.001]
[1764581601779,13.78013036,2842.0,2841.9,0.001]
[1764581602307,7.44074563,2842.0,2841.9,0.001]
[1764581604614,7.43994563,2842.0,2841.9,0.001]
[1764581606634,14.13116599,2842.0,2841.9,0.001]
[1764581607195,7.43994563,2842.0,2841.9,0.001]
[1764581607830,7.08811,2842.0,2841.9,0.001]
[1764581608030,6.95486796,2842.7,2841.9,0.001]
[1764581608031,0.55191875,2842.9,2841.9,7.63882036]
[1764581608321,0.1989,2845.1,2841.9,7.63882036]
[1764581608322,0.716,2844.3,2842.9,0.72559411]
[1764581608545,0.716,2844.3,2843.5,0.72559411]
[1764581608841,1.06764074,2844.3,2843.7,0.72559411]
[1764581609555,1.06764074,2844.3,2843.6,0.74168145]
[1764581609759,1.06764074,2844.3,2843.5,1.16959411]
[1764581610098,1.06764074,2844.3,2843.7,0.72559411]
[1764581611221,0.492,2844.2,2843.7,0.72559411]
[1764581611626,0.35164074,2844.0,2843.7,0.72559411]
[1764581612134,0.4505,2843.8,2843.7,4.24213945]
[1764581612299,0.35164074,2844.0,2843.7,11.27523013]
[1764581619719,0.224,2844.3,2843.7,11.27523013]
[1764581619925,0.492,2844.0,2843.7,11.27523013]
[1764581620443,0.716,2844.3,2843.7,14.79177547]
[1764581620949,0.716,2844.3,2843.7,11.27523013]
[1764581621115,0.492,2844.2,2843.7,11.27523013]
[1764581626062,0.492,2844.2,2843.7,10.54963602]
[1764581626860,0.6306,2843.8,2843.7,3.51654534]
[1764581627062,0.492,2844.2,2843.7,10.54963602]
[1764581627752,0.4932,2844.2,2843.7,10.54963602]
[1764581627948,0.4932,2844.2,2843.6,0.72559411]
[1764581630055,0.4932,2844.2,2843.7,10.54963602]
[1764581631752,0.002,2844.2,2843.7,10.99463602]
[1764581632050,0.492,2844.1,2843.7,10.54963602]
[1764581633733,0.492,2844.1,2843.7,10.4410659]
[1764581634077,0.4814,2843.8,2843.7,3.40797522]
[1764581634656,0.492,2844.1,2843.7,10.4410659]
[1764581636858,0.6634,2843.8,2843.7,3.40797522]
[1764581637239,1.1482,2843.8,2843.7,3.40797522]
[1764581639760,1.3722,2843.8,2843.7,3.40797522]
[1764581640412,0.224,2843.8,2843.7,3.85297522]
[1764581640958,0.224,2843.8,2843.7,3.40797522]
[1764581641527,0.7054,2843.8,2843.7,3.40797522]
[1764581642660,1.1902,2843.8,2843.7,3.40797522]
[1764581644179,0.90996091,2843.8,2843.7,3.40797522]
[1764581646430,0.42516091,2843.8,2843.7,3.40797522]
[1764581647968,0.42516091,2843.8,2843.6,3.51764099]
[1764581647969,0.42516091,2843.8,2843.6,0.001]
[1764581648979,0.3744,2843.7,2843.6,0.001]
[1764581650468,0.3744,2843.7,2843.6,4.24326312]
[1764581650674,0.224,2843.9,2843.7,0.72559411]
[1764581650875,0.2232,2843.9,2843.7,0.72559411]
[1764581651076,0.002,2844.2,2843.8,0.4833]
[1764581651252,0.4848,2844.1,2843.7,1.90159483]
[1764581651575,0.002,2844.2,2843.7,2.37809483]
[1764581651974,0.4848,2844.1,2843.7,1.90159483]
[1764581652453,0.4848,2844.1,2843.9,0.72559411]
[1764581654751,0.4848,2844.1,2844.0,4.24176851]
[1764581656287,0.002,2844.2,2844.0,7.75794291]
[1764581656787,0.4814,2844.1,2844.0,4.24176851]
[1764581656976,0.002,2844.2,2844.0,7.75794291]
[1764581658181,0.4868,2844.2,2844.0,7.75794291]
[1764581659990,0.002,2844.2,2844.0,7.75794291]
[1764581664890,0.002,2844.2,2844.1,0.4918]
[1764581666182,0.002,2844.2,2844.0,7.75794291]
[1764581667030,0.4829,2844.1,2844.0,3.5161744]
[1764581668789,0.002,2844.2,2843.8,11.27485915]
[1764581670495,0.002,2844.2,2843.8,11.83702315]
[1764581670813,0.002,2844.2,2843.8,12.31222315]
[1764581671192,0.002,2844.2,2843.8,11.83702315]
[1764581672610,0.002,2844.2,2844.1,0.4558]
[1764581672811,0.002,2844.2,2843.8,17.96774998]
[1764581672812,0.002,2844.2,2843.9,0.4752]
[1764581673011,0.002,2844.2,2844.0,7.0323488]
[1764581673925,0.0012,2844.2,2844.0,7.0323488]
[1764581677518,0.0012,2844.2,2843.9,7.03259608]
[1764581677519,0.9361,2844.1,2843.9,7.03259608]
[1764581677914,0.3494,2844.0,2843.9,4.24189215]
[1764581679067,0.4624,2844.2,2843.9,7.75819019]
[1764581683052,0.4624,2844.2,2843.9,7.75919019]
[1764581685653,0.0012,2844.2,2843.9,7.75919019]
[1764581686455,0.0012,2844.2,2843.9,9.40803946]
[1764581687332,0.0012,2844.2,2844.1,0.6492]
[1764581688155,0.0012,2844.2,2844.1,4.16525077]
[1764581688754,0.0012,2844.2,2844.1,4.01055077]
[1764581690662,0.0012,2844.2,2844.1,3.51605077]
[1764581691866,0.0012,2844.2,2844.1,4.01055077]
[1764581692570,0.0012,2844.2,2844.0,7.03233291]
[1764581694338,0.0012,2844.2,2844.1,0.4613]
[1764581694948,0.0012,2844.2,2844.1,3.97735077]
[1764581695138,0.0012,2844.2,2844.1,3.51605077]
[1764581695965,0.5,2844.2,2844.1,3.51605077]
[1764581696764,0.4992,2844.2,2844.1,3.51605077]
[1764581697564,0.4992,2844.2,2844.0,7.03233291]
[1764581697766,0.0004,2844.2,2844.1,0.4613]
[1764581698550,0.0004,2844.2,2844.0,7.03233291]
[1764581700164,0.9499,2844.1,2844.0,3.51615851]
[1764581701893,0.9499,2844.1,2844.0,3.51715851]
[1764581703458,1.1729,2844.1,2844.0,0.001]
[1764581703757,1.52454074,2844.1,2844.0,0.001]
[1764581703992,1.74969422,2844.1,2844.0,0.001]
[1764581704650,1.07344074,2844.1,2844.0,0.001]
[1764581704888,1.1729,2844.1,2844.0,0.001]
[1764581708909,0.223,2844.1,2844.0,0.4623]
[1764581709104,1.1729,2844.1,2844.0,0.001]
[1764581713016,0.223,2844.1,2844.0,0.4623]
[1764581713524,0.0004,2844.2,2844.0,0.4623]
[1764581713913,0.4988,2844.1,2844.0,0.001]
[1764581714602,0.9499,2844.1,2844.0,0.001]
[1764581716424,0.4988,2844.1,2844.0,0.001]
[1764581716629,0.0004,2844.2,2844.0,0.001]
[1764581717427,0.4988,2844.1,2844.0,0.001]
[1764581719896,0.498,2844.1,2844.0,0.001]
[1764581728100,0.0004,2844.2,2844.0,0.4856]
[1764581728327,0.4795,2844.1,2844.0,0.001]
[1764581728513,0.0004,2844.2,2844.0,0.001]
[1764581728823,0.0004,2844.2,2844.0,1.1286534]
[1764581729431,0.4881,2844.2,2844.0,1.1286534]
[1764581730542,0.4881,2844.2,2844.1,3.51605077]
[1764581730743,0.0004,2844.2,2844.1,3.98185077]
[1764581732108,0.4737,2844.2,2844.1,3.51605077]
[1764581732408,0.9251,2844.2,2844.1,3.51605077]
[1764581735342,0.9251,2844.2,2844.0,7.03333211]
[1764581737644,0.3607,2844.1,2844.0,3.51715771]
[1764581738030,0.4518,2844.2,2844.0,7.03333211]
[1764581738251,0.4543,2844.1,2844.0,3.51715771]
[1764581739166,0.0004,2844.2,2844.0,7.03333211]
[1764581739556,0.0004,2844.2,2844.0,8.16095293]
[1764581742971,0.452,2844.3,2844.0,8.16095293]
[1764581748590,0.452,2844.3,2844.0,7.03333211]
[1764581752487,0.4543,2844.1,2844.0,3.51715771]
[1764581752889,0.9297,2844.1,2844.0,3.51715771]
[1764581758116,0.002,2844.3,2844.0,7.03333211]
[1764581758443,0.4774,2844.3,2844.0,7.03333211]
[1764581758647,0.4521,2844.1,2844.0,3.51715771]
[1764581759142,0.9275,2844.1,2844.0,3.51715771]
[1764581763949,0.002,2844.3,2844.0,7.56539385]
[1764581764161,0.002,2844.3,2844.0,7.53023211]
[1764581764328,0.002,2844.3,2844.0,3.51715771]
[1764581764534,0.002,2844.3,2844.0,7.03333211]
[1764581764739,0.4774,2844.3,2844.0,7.03333211]
[1764581765120,0.002,2844.3,2844.0,7.03333211]
[1764581766054,0.0012,2844.3,2844.0,7.03333211]
[1764581767532,0.4521,2844.1,2844.0,3.51715771]
[1764581768467,0.0012,2844.3,2844.0,7.53023211]
[1764581768649,0.4766,2844.3,2844.0,7.03333211]
[1764581769152,0.4521,2844.1,2844.0,3.51715771]
[1764581769732,0.4766,2844.3,2844.0,7.03333211]
[1764581771251,0.4521,2844.1,2844.0,3.51715771]
[1764581772254,0.0012,2844.3,2844.0,7.53023211]
[1764581772651,0.0012,2844.3,2844.2,0.4969]
[1764581772959,0.0012,2844.3,2844.2,4.73842125]
[1764581773332,0.4533,2844.3,2844.2,3.51592714]
[1764581773640,0.9287,2844.3,2844.2,3.73892714]
[1764581773840,0.9287,2844.3,2844.2,0.223]
[1764581774218,0.9287,2844.3,2844.1,3.5159955]
[1764581774421,0.8337,2844.2,2844.1,3.5159955]
[1764581775047,0.8337,2844.2,2844.0,0.001]
[1764581775251,0.4511,2844.1,2844.0,0.001]
[1764581782751,0.0012,2844.3,2844.0,0.4979]
[1764581782959,0.0012,2844.3,2844.1,0.4969]
[1764581783257,0.0012,2844.3,2844.2,0.4739]
[1764581783634,0.0012,2844.3,2844.2,4.69902714]
[1764581785724,0.0012,2844.3,2844.2,4.21482714]
[1764581786455,0.0012,2844.3,2844.2,3.98982714]
[1764581787075,0.4539,2844.3,2844.2,3.51592714]
[1764581787566,1.27354074,2844.3,2844.2,3.51592714]
[1764581787755,0.4539,2844.3,2844.1,3.51604696]
[1764581787952,0.35164074,2844.2,2844.1,3.51604696]
[1764581789061,0.35183971,2844.2,2844.1,3.51604696]
[1764581789563,1.30633971,2844.2,2844.0,3.97963341]
[1764581789863,0.3352,2844.1,2844.0,0.001]
[1764581790053,0.8032,2844.1,2844.0,0.001]
[1764581790432,0.3352,2844.1,2844.0,0.001]
[1764581795246,0.4692,2844.3,2844.0,0.4739]
[1764581796467,0.82103971,2844.3,2844.0,0.4739]
[1764581796975,0.4865,2844.1,2844.0,0.001]
[1764581799475,0.35303971,2844.3,2844.0,0.001]
[1764581799682,0.468,2844.2,2844.0,0.001]
[1764581799861,0.4865,2844.1,2844.0,0.001]
[1764581800058,0.0012,2844.3,2844.1,0.9708]
[1764581800261,0.0012,2844.3,2844.2,7.74980849]
[1764581800466,0.0012,2844.3,2844.2,9.09839551]
[1764581800877,0.0012,2844.3,2844.2,9.23929043]
[1764581801260,0.0012,2844.3,2844.2,12.75521757]
[1764581803788,0.0012,2844.3,2844.2,12.33379211]
[1764581804189,0.002,2844.5,2844.3,0.72559411]
[1764581804387,0.002,2844.5,2844.4,1.5833777]
[1764581804589,0.002,2844.5,2844.4,2.0812777]
[1764581805272,0.1918,2845.9,2844.8,4.24077971]
[1764581805479,0.468,2845.6,2844.8,11.06656863]
[1764581805794,0.468,2845.6,2844.8,11.34146863]
[1764581806084,0.468,2845.5,2844.8,12.88315565]
[1764581806291,0.468,2845.8,2844.8,12.88315565]
[1764581806474,0.468,2845.7,2844.8,12.88315565]
[1764581806691,0.1918,2845.9,2844.8,12.88315565]
[1764581806857,0.468,2845.6,2844.8,12.88315565]
[1764581808294,0.1918,2845.9,2844.8,12.88315565]
[1764581808517,0.468,2845.5,2844.8,12.88315565]
[1764581808811,0.002,2845.2,2844.8,12.88315565]
[1764581810891,0.002,2845.2,2844.8,4.83877262]
[1764581811067,0.002,2845.2,2844.8,4.87392447]
[1764581811068,0.47,2845.2,2844.8,4.87392447]
[1764581811272,0.47,2845.2,2844.8,5.59951858]
[1764581811273,0.002,2845.2,2844.8,5.59951858]
[1764581811471,0.002,2845.2,2844.8,6.09741858]
[1764581812096,0.0012,2844.9,2844.8,6.09741858]
[1764581812293,0.4877,2844.9,2844.8,4.24077971]
[1764581812597,0.0012,2844.9,2844.8,4.27593156]
[1764581812964,0.4997,2844.9,2844.8,4.27593156]
[1764581813762,0.9975,2844.9,2844.8,4.27593156]
[1764581813962,0.4997,2844.9,2844.8,4.27593156]
[1764581816303,0.0012,2844.9,2844.8,4.27593156]
[1764581818498,0.4997,2844.9,2844.8,4.27593156]
[1764581819608,0.9975,2844.9,2844.8,4.27593156]
[1764581820303,0.4997,2844.9,2844.8,4.27593156]
[1764581820505,0.9975,2844.9,2844.8,4.27593156]
[1764581820809,0.4997,2844.9,2844.8,4.27593156]
[1764581821118,0.9975,2844.9,2844.8,0.72559411]
[1764581821340,0.9975,2844.9,2844.1,3.51605077]
[1764581821611,0.901204,2844.8,2844.1,3.51605077]
[1764581821799,0.901204,2844.8,2844.2,0.03515927]
[1764581822001,0.35183971,2844.5,2844.2,0.03515927]
[1764581822198,0.4985,2844.3,2844.2,0.03515927]
[1764581822590,0.9963,2844.3,2844.2,0.03515927]
[1764581822903,0.9963,2844.3,2844.2,3.55108641]
[1764581823599,0.0012,2844.9,2844.2,17.26695675]
[1764581823802,0.4978,2844.8,2844.2,17.70349748]
[1764581824808,0.4978,2844.8,2844.3,0.03515803]
[1764581825516,0.4985,2844.4,2844.3,3.55085834]
[1764581825728,0.4985,2844.4,2844.3,3.51570031]
[1764581826015,0.4985,2844.4,2844.3,3.55085834]
[1764581826212,0.4978,2844.6,2844.3,7.06666187]
[1764581828612,0.4985,2844.7,2844.6,3.55058706]
[1764581830515,0.9963,2844.7,2844.6,3.55058706]
[1764581830712,0.4985,2844.7,2844.6,3.55058706]
[1764581831217,0.0012,2844.9,2844.6,7.03086548]
[1764581831590,0.499,2844.9,2844.6,7.03086548]
[1764581831790,0.499,2844.9,2844.5,3.51554341]
[1764581832532,0.4985,2844.6,2844.4,7.03135986]
[1764581832832,0.2856,2844.5,2844.4,3.51567993]
[1764581833201,0.2856,2844.5,2844.4,3.55083672]
[1764581833602,0.2856,2844.5,2844.4,3.51567993]
[1764581833928,0.7834,2844.5,2844.2,0.72559411]
[1764581834096,0.4964,2844.4,2844.2,0.72559411]
[1764581835031,0.4956,2844.4,2844.3,4.24139764]
[1764581836636,0.9934,2844.4,2844.3,3.51580353]
[1764581837008,0.9934,2844.4,2844.1,7.03299247]
[1764581837305,0.2877,2844.3,2844.1,7.03299247]
[1764581837899,0.4978,2844.7,2844.2,0.50685927]
[1764581838105,0.0012,2844.9,2844.2,7.19087533]
[1764581838300,0.0012,2844.9,2844.2,7.15571606]
[1764581838301,0.4978,2844.8,2844.2,7.15571606]
[1764581838524,0.4978,2844.8,2844.3,0.03515803]
[1764581839536,0.4978,2844.8,2844.4,7.03135986]
[1764581839742,0.4978,2844.8,2844.5,0.03515556]
[1764581840547,0.4985,2844.6,2844.5,0.03515556]
[1764581840936,1.34813971,2844.6,2844.4,3.51567993]
[1764581841137,0.284,2844.5,2844.2,3.51592714]
[1764581841349,0.4985,2844.3,2844.1,0.001]
[1764581841520,0.4943,2844.2,2844.1,0.001]
[1764581842055,0.9921,2844.2,2844.1,0.001]
[1764581843162,0.4943,2844.2,2844.1,0.001]
[1764581843445,0.4943,2844.2,2844.1,3.51705077]
[1764581843825,0.4943,2844.2,2844.1,3.55221127]
[1764581844449,0.35183971,2844.4,2844.1,8.91560068]
[1764581844741,0.57483971,2844.6,2844.1,11.92459095]
[1764581844931,1.03873971,2844.6,2844.1,10.54915231]
[1764581845135,0.6869,2844.6,2844.1,10.54915231]
[1764581845336,0.81573971,2844.5,2844.1,0.001]
[1764581845547,0.81573971,2844.5,2844.1,0.0361605]
[1764581845745,0.0012,2844.9,2844.4,0.4719]
[1764581846043,0.0012,2844.9,2844.5,0.03515556]
[1764581846448,0.0012,2844.9,2844.2,0.03515927]
[1764581846647,0.4651,2844.9,2844.2,0.03515927]
[1764581846818,0.81693971,2844.9,2844.2,0.03515927]
[1764581847316,0.4639,2844.8,2844.3,0.79177694]
[1764581847516,0.4639,2844.8,2844.5,7.03111266]
[1764581847918,0.4554,2844.6,2844.5,3.51555633]
[1764581848117,0.4554,2844.6,2844.5,3.55071189]
[1764581848951,0.4639,2844.8,2844.5,7.06626822]
[1764581849154,0.4639,2844.8,2844.5,7.03111266]
[1764581849655,0.4639,2844.8,2844.4,7.03134053]
[1764581849824,0.4639,2844.8,2844.5,0.03515556]
[1764581850252,0.4554,2844.6,2844.5,0.03515556]
[1764581850955,0.9218,2844.6,2844.4,7.03134053]
[1764581851247,0.3578,2844.5,2844.4,3.5156606]
[1764581851426,0.8242,2844.5,2844.4,3.5156606]
[1764581851627,0.8242,2844.5,2844.2,7.03185428]
[1764581851833,0.9208,2844.4,2844.2,7.03185428]
[1764581852045,0.3588,2844.3,2844.2,4.24152125]
[1764581852445,0.0012,2844.9,2844.2,12.55608748]
[1764581852646,0.0012,2844.9,2844.3,0.4716]
[1764581852826,0.35183971,2844.8,2844.4,0.03515679]
[1764581853026,0.4554,2844.5,2844.4,0.03515679]
[1764581853227,0.4554,2844.5,2844.3,0.03515803]
[1764581853422,0.4554,2844.5,2844.3,0.99737007]
[1764581853666,0.4664,2844.8,2844.4,0.03515679]
[1764581853667,0.81823971,2844.8,2844.4,0.03515679]
[1764581853852,0.81823971,2844.8,2844.5,7.03111266]
[1764581854344,0.4554,2844.6,2844.5,3.51555633]
[1764581854564,0.4554,2844.6,2844.5,3.55071189]
[1764581854725,0.35183971,2844.8,2844.5,14.92852192]
[1764581854929,0.0012,2844.9,2844.8,0.72559411]
[1764581855133,0.0012,2844.9,2844.8,1.19719411]
[1764581855361,0.0012,2844.9,2844.8,8.36431017]
[1764581855653,0.0012,2844.9,2844.8,9.43649106]
[1764581855823,0.0012,2844.9,2844.8,5.7845606]
[1764581856026,0.0012,2844.9,2844.8,12.95167666]
[1764581856462,0.0012,2844.9,2844.8,12.46857666]
[1764581856770,0.0012,2844.9,2844.8,5.3129606]
[1764581856771,0.4566,2844.9,2844.8,5.3129606]
[1764581856937,0.35183971,2844.5,2844.4,3.5155838]
[1764581857139,0.80273971,2844.5,2844.4,3.5155838]
[1764581857368,0.80273971,2844.5,2844.4,3.55074059]
[1764581857538,0.35183971,2844.5,2844.4,3.9871838]
[1764581858028,0.80203971,2844.5,2844.4,3.5155838]
[1764581858638,0.917,2844.5,2844.2,3.51592714]
[1764581858841,0.4664,2844.4,2844.2,7.03185428]
[1764581859040,0.4508,2844.3,2844.2,3.51592714]
[1764581859965,0.4508,2844.3,2844.1,7.03309423]
[1764581860271,0.0045,2844.2,2844.1,3.51704346]
[1764581861377,0.002,2844.8,2844.1,7.50469423]
[1764581861539,0.57403971,2844.7,2844.4,6.68401606]
[1764581861735,0.4508,2844.5,2844.1,17.23316106]
[1764581862080,0.0047,2844.4,2844.1,10.20105952]
[1764581864085,0.0047,2844.4,2844.1,13.71711029]
[1764581865274,0.0047,2844.4,2844.1,7.03309423]
[1764581866282,0.4711,2844.4,2844.1,3.51704346]
[1764581866490,0.4711,2844.4,2844.1,0.001]
[1764581867104,0.4711,2844.4,2844.1,0.0361605]
[1764581867309,0.0047,2844.4,2844.1,6.72017656]
[1764581867470,0.0047,2844.4,2844.1,6.68501606]
[1764581867675,0.0047,2844.4,2844.2,0.03515927]
[1764581867899,0.4462,2844.3,2844.1,6.68501606]
[1764581868269,0.4462,2844.3,2844.2,3.51592714]
[1764581869676,0.9126,2844.3,2844.2,3.51592714]
[1764581870305,0.9126,2844.3,2844.1,0.001]
[1764581870475,0.4755,2844.2,2844.1,0.001]
[1764581870808,0.002,2844.8,2844.1,0.001]
[1764581871102,0.4664,2844.6,2844.1,0.4726]
[1764581871603,0.223,2844.5,2844.1,0.4726]
[1764581872022,0.223,2844.5,2844.2,6.71917533]
[1764581872180,0.223,2844.5,2844.1,0.4726]
[1764581872376,0.6894,2844.5,2844.2,7.03185428]
[1764581872583,0.68800249,2844.5,2844.2,7.03185428]
[1764581873108,0.68800249,2844.5,2844.3,0.03515803]
[1764581874228,0.4508,2844.4,2844.3,0.03515803]
[1764581874604,0.4508,2844.4,2844.3,3.55096156]
[1764581876826,0.22160249,2844.5,2844.3,7.55496509]
[1764581877027,0.22160249,2844.5,2844.3,7.51980706]
[1764581877724,0.22360249,2844.5,2844.3,7.51980706]
[1764581877936,0.4509,2844.4,2844.3,3.51580353]
[1764581878138,0.4509,2844.4,2844.3,3.55096156]
[1764581879105,0.4228,2844.4,2844.3,3.55096156]
[1764581880545,6.68401606,2845.3,2844.3,3.55096156]
[1764581880546,0.4947,2846.3,2844.8,0.4882]
[1764581880752,0.1864,2845.9,2845.0,0.4882]
[1764581880915,0.4947,2845.6,2845.0,0.4882]
[1764581881121,0.0012,2845.1,2845.0,4.72873259]
[1764581881641,0.0012,2845.1,2845.0,5.18003259]
[1764581881931,0.0012,2845.1,2845.0,6.35409527]
[1764581884647,0.0012,2845.1,2845.0,12.47589339]
[1764581886406,0.0012,2845.1,2845.0,12.02459339]
[1764581887411,0.0012,2845.1,2845.0,12.47589339]
[1764581888615,0.4218,2845.1,2845.0,11.53639339]